[Event "*** SCC Grand Prix: Titled Tuesday Blitz"]
[Site "Chess.com"]
[Date "2020.07.14"]
[Round "9"]
[White "NormWeinstein"]
[Black "kasparicy"]
[Result "1/2-1/2"]
[WhiteElo "2455"]
[BlackElo "2323"]
[TimeControl "180+1"]
[EndTime "11:49:09 PDT"]
[Termination "Game drawn - insufficient material"]

1. e4 {[%clk 0:02:54.6]} 1... c5 {[%clk 0:02:59.4]} 2. Nf3 {[%clk 0:02:54.4]}
2... d6 {[%clk 0:02:56]} 3. Nc3 {[%clk 0:02:54.7]} 3... Nf6 {[%clk 0:02:54.7]}
4. e5 {[%clk 0:02:54.4]} 4... dxe5 {[%clk 0:02:52.8]} 5. Nxe5 {[%clk 0:02:54.8]}
5... Nbd7 {[%clk 0:02:53.4]} 6. Nc4 {[%clk 0:02:54.6]} 6... e6 {[%clk
0:02:53.1]} 7. g3 {[%clk 0:02:53.8]} 7... a6 {[%clk 0:02:53.1]} 8. Bg2 {[%clk
0:02:51.2]} 8... Qc7 {[%clk 0:02:52.9]} 9. a4 {[%clk 0:02:49.1]} 9... Be7 {[%clk
0:02:53.1]} 10. O-O {[%clk 0:02:45.7]} 10... O-O {[%clk 0:02:53.5]} 11. a5
{[%clk 0:02:45.5]} 11... Rb8 {[%clk 0:02:47.8]} 12. d3 {[%clk 0:02:45.2]} 12...
b6 {[%clk 0:02:34.1]} 13. axb6 {[%clk 0:02:40.6]} 13... Nxb6 {[%clk 0:02:35]}
14. Bf4 {[%clk 0:02:39.2]} 14... Qa7 {[%clk 0:02:23.2]} 15. Bxb8 {[%clk
0:02:37.3]} 15... Qxb8 {[%clk 0:02:24.1]} 16. Nxb6 {[%clk 0:02:34.2]} 16... Qxb6
{[%clk 0:02:25]} 17. b3 {[%clk 0:02:33.2]} 17... Bb7 {[%clk 0:02:21.7]} 18. Ne4
{[%clk 0:02:25.5]} 18... Rd8 {[%clk 0:02:13]} 19. Re1 {[%clk 0:01:51.8]} 19...
Nd5 {[%clk 0:02:06.5]} 20. Qe2 {[%clk 0:01:51]} 20... Bf8 {[%clk 0:02:05.4]} 21.
Qd2 {[%clk 0:01:35.6]} 21... Nb4 {[%clk 0:02:00.5]} 22. Nc3 {[%clk 0:01:27.5]}
22... Bxg2 {[%clk 0:01:48]} 23. Kxg2 {[%clk 0:01:26.6]} 23... Qc6+ {[%clk
0:01:48.3]} 24. f3 {[%clk 0:01:22.9]} 24... g6 {[%clk 0:01:47.5]} 25. Rad1
{[%clk 0:01:16]} 25... Bg7 {[%clk 0:01:47.3]} 26. Ne4 {[%clk 0:01:15.3]} 26...
h6 {[%clk 0:01:40]} 27. Qe2 {[%clk 0:01:13.6]} 27... Nd5 {[%clk 0:01:29.3]} 28.
c4 {[%clk 0:01:11.5]} 28... Nb4 {[%clk 0:01:26.6]} 29. Nf2 {[%clk 0:01:10.9]}
29... Bc3 {[%clk 0:01:19.7]} 30. Rf1 {[%clk 0:01:07.2]} 30... Qb7 {[%clk
0:01:08.6]} 31. Ng4 {[%clk 0:01:01.6]} 31... Kg7 {[%clk 0:01:05.8]} 32. Qe3
{[%clk 0:00:57.2]} 32... g5 {[%clk 0:00:57]} 33. Nf2 {[%clk 0:00:54.4]} 33...
Bd4 {[%clk 0:00:51.5]} 34. Qe4 {[%clk 0:00:54.1]} 34... Nc6 {[%clk 0:00:47.2]}
35. Rb1 {[%clk 0:00:48.6]} 35... Qc7 {[%clk 0:00:37.9]} 36. h4 {[%clk 0:00:47]}
36... Bf6 {[%clk 0:00:36]} 37. hxg5 {[%clk 0:00:44.7]} 37... hxg5 {[%clk
0:00:36.9]} 38. Ng4 {[%clk 0:00:42.7]} 38... Nd4 {[%clk 0:00:30.4]} 39. Nxf6
{[%clk 0:00:38.6]} 39... Kxf6 {[%clk 0:00:31.3]} 40. f4 {[%clk 0:00:36.4]} 40...
gxf4 {[%clk 0:00:32.2]} 41. Rxf4+ {[%clk 0:00:34.8]} 41... Ke7 {[%clk
0:00:29.5]} 42. Rbf1 {[%clk 0:00:35]} 42... f5 {[%clk 0:00:25.3]} 43. Rxf5
{[%clk 0:00:30.2]} 43... Nxf5 {[%clk 0:00:23.5]} 44. Rxf5 {[%clk 0:00:30.5]}
44... Rd4 {[%clk 0:00:20.2]} 45. Qe3 {[%clk 0:00:30.8]} 45... Qc6+ {[%clk
0:00:18.3]} 46. Kh2 {[%clk 0:00:22.7]} 46... Qe8 {[%clk 0:00:16.9]} 47. Rg5
{[%clk 0:00:17.3]} 47... Qh8+ {[%clk 0:00:15.6]} 48. Kg2 {[%clk 0:00:16.6]}
48... Qh7 {[%clk 0:00:16.1]} 49. Re5 {[%clk 0:00:14.4]} 49... Qg6 {[%clk
0:00:15]} 50. Re4 {[%clk 0:00:12.8]} 50... Rxe4 {[%clk 0:00:14]} 51. Qxe4 {[%clk
0:00:12.4]} 51... Qg5 {[%clk 0:00:13.8]} 52. Qb7+ {[%clk 0:00:11.8]} 52... Kf6
{[%clk 0:00:13.8]} 53. Qf3+ {[%clk 0:00:12.1]} 53... Ke7 {[%clk 0:00:13.8]} 54.
Qf4 {[%clk 0:00:12.5]} 54... Qh5 {[%clk 0:00:12.7]} 55. Qc7+ {[%clk 0:00:12.1]}
55... Kf6 {[%clk 0:00:13.1]} 56. Qf4+ {[%clk 0:00:11.7]} 56... Ke7 {[%clk
0:00:13.4]} 57. g4 {[%clk 0:00:12.2]} 57... Qh4 {[%clk 0:00:11.7]} 58. Qc7+
{[%clk 0:00:10.9]} 58... Kf6 {[%clk 0:00:11.7]} 59. Qf4+ {[%clk 0:00:10.7]}
59... Ke7 {[%clk 0:00:11.4]} 60. Qg3 {[%clk 0:00:10.7]} 60... Qg5 {[%clk
0:00:10.9]} 61. Qc7+ {[%clk 0:00:08.9]} 61... Ke8 {[%clk 0:00:10.6]} 62. Kf3
{[%clk 0:00:09.2]} 62... Qf6+ {[%clk 0:00:10.2]} 63. Qf4 {[%clk 0:00:08.7]}
63... Qc3 {[%clk 0:00:09.9]} 64. Qb8+ {[%clk 0:00:07.2]} 64... Kf7 {[%clk
0:00:10.2]} 65. Qc7+ {[%clk 0:00:07.2]} 65... Kf6 {[%clk 0:00:09.5]} 66. Qf4+
{[%clk 0:00:06.4]} 66... Ke7 {[%clk 0:00:09.8]} 67. Qc7+ {[%clk 0:00:05.8]}
67... Kf6 {[%clk 0:00:10.2]} 68. Qxc5 {[%clk 0:00:06.1]} 68... Qxd3+ {[%clk
0:00:09.1]} 69. Qe3 {[%clk 0:00:06.5]} 69... Qd1+ {[%clk 0:00:09.4]} 70. Ke4
{[%clk 0:00:05.6]} 70... Qc2+ {[%clk 0:00:08.1]} 71. Qd3 {[%clk 0:00:05]} 71...
Qg2+ {[%clk 0:00:07]} 72. Kf4 {[%clk 0:00:03.1]} 72... e5+ {[%clk 0:00:04.6]}
73. Ke3 {[%clk 0:00:03.1]} 73... Qg3+ {[%clk 0:00:04.5]} 74. Kd2 {[%clk
0:00:02.6]} 74... Qxg4 {[%clk 0:00:04.4]} 75. Qd6+ {[%clk 0:00:02.5]} 75... Kf5
{[%clk 0:00:01.9]} 76. Qd7+ {[%clk 0:00:02.8]} 76... Kf4 {[%clk 0:00:02.1]} 77.
Qxg4+ {[%clk 0:00:03]} 77... Kxg4 {[%clk 0:00:03]} 78. Ke3 {[%clk 0:00:02.8]}
78... Kf5 {[%clk 0:00:03]} 79. c5 {[%clk 0:00:02.7]} 79... Ke6 {[%clk 0:00:03]}
80. b4 {[%clk 0:00:02.9]} 80... Kd5 {[%clk 0:00:01.8]} 81. Kd3 {[%clk
0:00:03.3]} 81... a5 {[%clk 0:00:01.8]} 82. bxa5 {[%clk 0:00:02.4]} 82... Kxc5
{[%clk 0:00:02.2]} 83. Ke4 {[%clk 0:00:01.3]} 83... Kb5 {[%clk 0:00:02.6]} 84.
a6 {[%clk 0:00:01.9]} 84... Kxa6 {[%clk 0:00:02.9]} 85. Kxe5 {[%clk 0:00:02.5]}
1/2-1/2

[Event "*** SCC Grand Prix: Titled Tuesday Blitz"]
[Site "Chess.com"]
[Date "2020.07.14"]
[Round "9"]
[White "rasmussvane"]
[Black "KazakhFighter04"]
[Result "1-0"]
[WhiteElo "2891"]
[BlackElo "2745"]
[TimeControl "180+1"]
[EndTime "11:49:13 PDT"]
[Termination "rasmussvane won by resignation"]

1. Nf3 {[%clk 0:03:00.9]} 1... d5 {[%clk 0:02:45.8]} 2. g3 {[%clk 0:02:59.7]}
2... g6 {[%clk 0:02:45.7]} 3. Bg2 {[%clk 0:02:59.5]} 3... Bg7 {[%clk 0:02:46.2]}
4. d4 {[%clk 0:03:00]} 4... Nf6 {[%clk 0:02:46.5]} 5. O-O {[%clk 0:03:00.5]}
5... O-O {[%clk 0:02:47.1]} 6. c4 {[%clk 0:03:00.9]} 6... c6 {[%clk 0:02:47.8]}
7. Qb3 {[%clk 0:03:01.3]} 7... Qb6 {[%clk 0:02:40.8]} 8. Nc3 {[%clk 0:03:01.2]}
8... Rd8 {[%clk 0:02:28.6]} 9. Bd2 {[%clk 0:03:01.4]} 9... Bf5 {[%clk 0:02:16]}
10. Na4 {[%clk 0:03:01]} 10... Qxb3 {[%clk 0:01:55.5]} 11. axb3 {[%clk
0:03:01.9]} 11... Na6 {[%clk 0:01:55.2]} 12. Rfc1 {[%clk 0:03:00.9]} 12... Ne4
{[%clk 0:01:49.8]} 13. Ba5 {[%clk 0:02:57.5]} 13... Rdc8 {[%clk 0:01:46.4]} 14.
e3 {[%clk 0:02:57.9]} 14... Be6 {[%clk 0:01:33.6]} 15. Nd2 {[%clk 0:02:53.5]}
15... Nxd2 {[%clk 0:01:29.1]} 16. Bxd2 {[%clk 0:02:54.4]} 16... Rab8 {[%clk
0:01:16.1]} 17. Bf1 {[%clk 0:02:32.7]} 17... Kf8 {[%clk 0:01:08.7]} 18. Nc3
{[%clk 0:02:26.5]} 18... dxc4 {[%clk 0:00:50.3]} 19. bxc4 {[%clk 0:02:22.9]}
19... c5 {[%clk 0:00:50.5]} 20. Nb5 {[%clk 0:02:11]} 20... cxd4 {[%clk
0:00:49.7]} 21. exd4 {[%clk 0:02:07.9]} 21... Bd7 {[%clk 0:00:45.5]} 22. Nxa7
{[%clk 0:02:00.4]} 22... Rd8 {[%clk 0:00:42]} 23. Ba5 {[%clk 0:01:55.8]} 23...
Bxd4 {[%clk 0:00:37.5]} 24. Bxd8 {[%clk 0:01:53.3]} 24... Rxd8 {[%clk
0:00:38.4]} 25. Rd1 {[%clk 0:01:02.8]} 25... Bxa7 {[%clk 0:00:33.7]} 26. b4
{[%clk 0:00:55]} 26... Bb8 {[%clk 0:00:33.2]} 27. c5 {[%clk 0:00:27]} 27... Nxb4
{[%clk 0:00:28.7]} 28. Rab1 {[%clk 0:00:27.1]} 28... Nc6 {[%clk 0:00:16.1]} 29.
Rxb7 {[%clk 0:00:27.2]} 29... Ke8 {[%clk 0:00:07.9]} 30. Bb5 {[%clk 0:00:27.2]}
30... Ne5 {[%clk 0:00:03.8]} 31. Bxd7+ {[%clk 0:00:17.8]} 31... Nxd7 {[%clk
0:00:03.2]} 32. c6 {[%clk 0:00:16]} 32... Ne5 {[%clk 0:00:03.7]} 33. Rxd8+
{[%clk 0:00:13.3]} 33... Kxd8 {[%clk 0:00:04.6]} 34. Rxb8+ {[%clk 0:00:13.2]}
34... Kc7 {[%clk 0:00:05.2]} 35. Rb7+ {[%clk 0:00:13.8]} 35... Kxc6 {[%clk
0:00:02.8]} 36. Rxe7 {[%clk 0:00:13.7]} 36... Kd6 {[%clk 0:00:03.7]} 37. Ra7
{[%clk 0:00:13.9]} 37... Ke6 {[%clk 0:00:03.8]} 38. Kg2 {[%clk 0:00:14.1]} 38...
h5 {[%clk 0:00:03.9]} 39. h3 {[%clk 0:00:13.3]} 39... Kf6 {[%clk 0:00:03.6]} 40.
Kf1 {[%clk 0:00:13.1]} 40... Kg7 {[%clk 0:00:03.3]} 41. Ke2 {[%clk 0:00:13.5]}
41... Kf6 {[%clk 0:00:03.5]} 42. Ra6+ {[%clk 0:00:12.9]} 42... Kf5 {[%clk
0:00:02.2]} 43. Ra5 {[%clk 0:00:12.3]} 43... Kf6 {[%clk 0:00:02.2]} 44. Rc5
{[%clk 0:00:12.2]} 44... Nd7 {[%clk 0:00:02.1]} 45. Rb5 {[%clk 0:00:11.7]} 45...
Ne5 {[%clk 0:00:02.2]} 46. Ke3 {[%clk 0:00:11.9]} 46... Nd7 {[%clk 0:00:02.2]}
47. Kd4 {[%clk 0:00:11.6]} 47... Nf8 {[%clk 0:00:03.1]} 48. f4 {[%clk
0:00:10.4]} 48... Ne6+ {[%clk 0:00:04]} 49. Ke4 {[%clk 0:00:10.8]} 49... Ng7
{[%clk 0:00:03.9]} 50. Rb6+ {[%clk 0:00:10.6]} 50... Ke7 {[%clk 0:00:04.1]} 51.
Ke5 {[%clk 0:00:08.6]} 51... Ne8 {[%clk 0:00:02.6]} 52. Rb7+ {[%clk 0:00:08.5]}
52... Kf8 {[%clk 0:00:03.3]} 53. Ra7 {[%clk 0:00:06.2]} 53... Kg7 {[%clk
0:00:03.5]} 54. g4 {[%clk 0:00:05.9]} 54... hxg4 {[%clk 0:00:04.4]} 55. hxg4
{[%clk 0:00:06.8]} 55... Nf6 {[%clk 0:00:04.7]} 56. g5 {[%clk 0:00:07.2]} 56...
Nh5 {[%clk 0:00:05.1]} 57. Ra3 {[%clk 0:00:06.3]} 57... Kf8 {[%clk 0:00:04.4]}
58. Ra8+ {[%clk 0:00:05.7]} 58... Kg7 {[%clk 0:00:04.6]} 59. Ra7 {[%clk
0:00:06.2]} 59... Ng3 {[%clk 0:00:04.6]} 60. Kd6 {[%clk 0:00:04.6]} 60... Nf5+
{[%clk 0:00:02.5]} 61. Kd7 {[%clk 0:00:04.9]} 61... Kf8 {[%clk 0:00:02.9]} 62.
Ra8+ {[%clk 0:00:04.8]} 62... Kg7 {[%clk 0:00:03.3]} 63. Rb8 {[%clk 0:00:05.1]}
63... Ne3 {[%clk 0:00:02.3]} 64. Ke8 {[%clk 0:00:04.6]} 64... Nd5 {[%clk
0:00:02.1]} 65. Rb7 {[%clk 0:00:04.6]} 65... Kg8 {[%clk 0:00:02.4]} 66. Rxf7
{[%clk 0:00:03.8]} 66... Ne3 {[%clk 0:00:03]} 67. Rf8+ {[%clk 0:00:03.7]} 67...
Kg7 {[%clk 0:00:03.3]} 68. Rf7+ {[%clk 0:00:04.6]} 68... Kg8 {[%clk 0:00:03.8]}
69. Re7 {[%clk 0:00:04.3]} 69... Nd5 {[%clk 0:00:03.2]} 70. Re4 {[%clk
0:00:04.8]} 70... Kg7 {[%clk 0:00:02.7]} 71. Kd7 {[%clk 0:00:04.1]} 71... Nc3
{[%clk 0:00:02.4]} 72. Rc4 {[%clk 0:00:04.1]} 72... Ne2 {[%clk 0:00:02.5]} 73.
Ke6 {[%clk 0:00:04.6]} 73... Ng3 {[%clk 0:00:03.4]} 74. Rc7+ {[%clk 0:00:04.4]}
74... Kg8 {[%clk 0:00:03.8]} 75. Kf6 {[%clk 0:00:05.3]} 75... Nh5+ {[%clk
0:00:04.2]} 76. Kxg6 {[%clk 0:00:05.2]} 76... Nxf4+ {[%clk 0:00:04.8]} 77. Kf5
{[%clk 0:00:05.6]} 77... Nd5 {[%clk 0:00:04.9]} 78. Ra7 {[%clk 0:00:05.7]} 78...
Ne3+ {[%clk 0:00:04.8]} 79. Kg6 {[%clk 0:00:05.3]} 79... Kf8 {[%clk 0:00:05.2]}
80. Ra8+ {[%clk 0:00:05.6]} 80... Ke7 {[%clk 0:00:05.7]} 81. Kh7 {[%clk
0:00:06]} 81... Nf5 {[%clk 0:00:06.2]} 82. g6 {[%clk 0:00:05.6]} 82... Kf6
{[%clk 0:00:07.1]} 83. Rf8+ {[%clk 0:00:04.7]} 1-0

[Event "*** SCC Grand Prix: Titled Tuesday Blitz"]
[Site "Chess.com"]
[Date "2020.07.14"]
[Round "9"]
[White "Vladislav_Chizhikov"]
[Black "Olga_Zhuravleva"]
[Result "1/2-1/2"]
[WhiteElo "2422"]
[BlackElo "2314"]
[TimeControl "180+1"]
[EndTime "11:49:15 PDT"]
[Termination "Game drawn by repetition"]

1. e4 {[%clk 0:03:00.9]} 1... e5 {[%clk 0:02:59.4]} 2. Nf3 {[%clk 0:02:59.8]}
2... Nc6 {[%clk 0:02:59]} 3. Bc4 {[%clk 0:03:00.1]} 3... Nf6 {[%clk 0:02:58.3]}
4. O-O {[%clk 0:02:59]} 4... Bc5 {[%clk 0:02:49.5]} 5. d4 {[%clk 0:02:56.2]}
5... exd4 {[%clk 0:02:43.8]} 6. e5 {[%clk 0:02:55.6]} 6... d5 {[%clk 0:02:43.9]}
7. Bb5 {[%clk 0:02:54.8]} 7... Ne4 {[%clk 0:02:43.1]} 8. Nxd4 {[%clk 0:02:54.2]}
8... Bd7 {[%clk 0:02:43.3]} 9. Bxc6 {[%clk 0:02:52.8]} 9... bxc6 {[%clk
0:02:43.3]} 10. f3 {[%clk 0:02:53.1]} 10... Ng5 {[%clk 0:02:40.2]} 11. f4 {[%clk
0:02:53.6]} 11... Ne4 {[%clk 0:02:34.4]} 12. Be3 {[%clk 0:02:53.2]} 12... Qe7
{[%clk 0:02:31.1]} 13. c3 {[%clk 0:02:50.6]} 13... O-O {[%clk 0:02:30.6]} 14.
Nd2 {[%clk 0:02:46.3]} 14... Nxd2 {[%clk 0:02:30.3]} 15. Qxd2 {[%clk 0:02:46.1]}
15... Rab8 {[%clk 0:02:30.5]} 16. b4 {[%clk 0:02:44.7]} 16... Bb6 {[%clk
0:02:29.9]} 17. Nb3 {[%clk 0:02:43.4]} 17... f6 {[%clk 0:02:18.8]} 18. Bc5
{[%clk 0:02:41.7]} 18... Bxc5+ {[%clk 0:02:17.3]} 19. Nxc5 {[%clk 0:02:41.2]}
19... fxe5 {[%clk 0:02:16]} 20. fxe5 {[%clk 0:02:42.1]} 20... Bf5 {[%clk
0:02:00.5]} 21. Qd4 {[%clk 0:02:29.5]} 21... Rbe8 {[%clk 0:01:52.4]} 22. Rae1
{[%clk 0:02:27.2]} 22... Qg5 {[%clk 0:01:45.6]} 23. Qf4 {[%clk 0:02:22]} 23...
Qg6 {[%clk 0:01:41.1]} 24. e6 {[%clk 0:02:00.1]} 24... Bxe6 {[%clk 0:01:29.8]}
25. Qxc7 {[%clk 0:01:56.8]} 25... Rxf1+ {[%clk 0:01:19.9]} 26. Rxf1 {[%clk
0:01:54.2]} 26... Bh3 {[%clk 0:01:19.1]} 27. Qg3 {[%clk 0:01:51.6]} 27... Qxg3
{[%clk 0:01:15]} 28. hxg3 {[%clk 0:01:52.5]} 28... Bg4 {[%clk 0:01:13]} 29. Rf4
{[%clk 0:01:48.4]} 29... h5 {[%clk 0:01:09.8]} 30. c4 {[%clk 0:01:27.4]} 30...
Re1+ {[%clk 0:00:59.7]} 31. Kh2 {[%clk 0:01:25]} 31... Re2 {[%clk 0:00:56.3]}
32. cxd5 {[%clk 0:01:22.9]} 32... cxd5 {[%clk 0:00:56.6]} 33. a4 {[%clk
0:01:21.3]} 33... g5 {[%clk 0:00:52.2]} 34. Rf1 {[%clk 0:01:09.1]} 34... Rd2
{[%clk 0:00:44.8]} 35. b5 {[%clk 0:01:07.4]} 35... d4 {[%clk 0:00:41.9]} 36. Ne4
{[%clk 0:01:04.5]} 36... Ra2 {[%clk 0:00:39.2]} 37. Nf6+ {[%clk 0:00:53.2]}
37... Kg7 {[%clk 0:00:37.2]} 38. Nxg4 {[%clk 0:00:54.1]} 38... hxg4 {[%clk
0:00:37.7]} 39. Rf5 {[%clk 0:00:50.8]} 39... Kg6 {[%clk 0:00:36.8]} 40. Rd5
{[%clk 0:00:50.2]} 40... Rxa4 {[%clk 0:00:35.4]} 41. Kg1 {[%clk 0:00:50.3]}
41... Rb4 {[%clk 0:00:25.7]} 42. Kf2 {[%clk 0:00:46.4]} 42... Rb2+ {[%clk
0:00:25]} 43. Kf1 {[%clk 0:00:45.5]} 43... d3 {[%clk 0:00:22.8]} 44. Rxd3 {[%clk
0:00:43.8]} 44... Rxb5 {[%clk 0:00:23.3]} 45. Rd6+ {[%clk 0:00:41.2]} 45... Kf5
{[%clk 0:00:23.3]} 46. Ra6 {[%clk 0:00:40.6]} 46... Rb7 {[%clk 0:00:22.3]} 47.
Ra5+ {[%clk 0:00:40.1]} 47... Kf6 {[%clk 0:00:21.3]} 48. Kf2 {[%clk 0:00:40]}
48... Rb2+ {[%clk 0:00:18.8]} 49. Kg1 {[%clk 0:00:39.6]} 49... Rb1+ {[%clk
0:00:19]} 50. Kh2 {[%clk 0:00:39]} 50... Rb7 {[%clk 0:00:19.8]} 51. Ra6+ {[%clk
0:00:37.8]} 51... Rb6 {[%clk 0:00:19.8]} 52. Rxa7 {[%clk 0:00:37.2]} 52... Kf5
{[%clk 0:00:20.5]} 53. Ra5+ {[%clk 0:00:35.9]} 53... Kg6 {[%clk 0:00:20.4]} 54.
Ra2 {[%clk 0:00:35.3]} 54... Rf6 {[%clk 0:00:20.5]} 55. Kg1 {[%clk 0:00:34.9]}
55... Kh5 {[%clk 0:00:20.4]} 56. Ra7 {[%clk 0:00:32.4]} 56... Rf5 {[%clk
0:00:20.6]} 57. Ra6 {[%clk 0:00:32]} 57... Re5 {[%clk 0:00:20]} 58. Ra7 {[%clk
0:00:26.5]} 58... Rf5 {[%clk 0:00:19.7]} 59. Re7 {[%clk 0:00:25.3]} 59... Rf6
{[%clk 0:00:19.4]} 60. Re5 {[%clk 0:00:23.4]} 60... Kg6 {[%clk 0:00:19.1]} 61.
Rd5 {[%clk 0:00:22.9]} 61... Kh5 {[%clk 0:00:19.3]} 62. Rd2 {[%clk 0:00:21.9]}
62... Kg6 {[%clk 0:00:19.6]} 63. Re2 {[%clk 0:00:21.4]} 63... Kh5 {[%clk
0:00:19.9]} 64. Rf2 {[%clk 0:00:21.1]} 64... Re6 {[%clk 0:00:19.4]} 65. Rf8
{[%clk 0:00:20.2]} 65... Kg6 {[%clk 0:00:19]} 66. Kf2 {[%clk 0:00:19.7]} 66...
Rb6 {[%clk 0:00:17.9]} 67. Ke3 {[%clk 0:00:19.1]} 67... Rb2 {[%clk 0:00:18]} 68.
Rf2 {[%clk 0:00:17.5]} 68... Rb3+ {[%clk 0:00:18.2]} 69. Ke2 {[%clk 0:00:17.8]}
69... Rxg3 {[%clk 0:00:18.6]} 70. Kf1 {[%clk 0:00:18.3]} 70... Rb3 {[%clk
0:00:18.5]} 71. Ra2 {[%clk 0:00:18.4]} 71... Kh5 {[%clk 0:00:19]} 72. Kf2 {[%clk
0:00:16.5]} 72... g3+ {[%clk 0:00:19]} 73. Ke2 {[%clk 0:00:16.5]} 73... Kg4
{[%clk 0:00:19]} 74. Ra4+ {[%clk 0:00:16.1]} 74... Kf5 {[%clk 0:00:19.3]} 75.
Ra5+ {[%clk 0:00:15.9]} 75... Kg6 {[%clk 0:00:19.8]} 76. Ra6+ {[%clk 0:00:15.8]}
76... Kh5 {[%clk 0:00:20.3]} 77. Ra5 {[%clk 0:00:14.9]} 77... Rb2+ {[%clk
0:00:20.3]} 78. Kf3 {[%clk 0:00:14.4]} 78... Rb3+ {[%clk 0:00:12.5]} 79. Ke2
{[%clk 0:00:14.2]} 79... Rb2+ {[%clk 0:00:10.9]} 80. Kf3 {[%clk 0:00:14]} 80...
Rb3+ {[%clk 0:00:11.4]} 81. Ke2 {[%clk 0:00:13.6]} 1/2-1/2

[Event "*** SCC Grand Prix: Titled Tuesday Blitz"]
[Site "Chess.com"]
[Date "2020.07.14"]
[Round "9"]
[White "silverback96"]
[Black "KetiGrant"]
[Result "1-0"]
[WhiteElo "2246"]
[BlackElo "2369"]
[TimeControl "180+1"]
[EndTime "11:49:16 PDT"]
[Termination "silverback96 won on time"]

1. e4 {[%clk 0:03:00.9]} 1... c5 {[%clk 0:02:59.1]} 2. c4 {[%clk 0:02:55.9]}
2... Nc6 {[%clk 0:02:58.7]} 3. Nc3 {[%clk 0:02:55.6]} 3... Nf6 {[%clk
0:02:57.1]} 4. g3 {[%clk 0:02:53.7]} 4... e6 {[%clk 0:02:56]} 5. Bg2 {[%clk
0:02:54]} 5... Be7 {[%clk 0:02:54.5]} 6. Nge2 {[%clk 0:02:53.3]} 6... O-O {[%clk
0:02:52.5]} 7. d4 {[%clk 0:02:51.1]} 7... cxd4 {[%clk 0:02:51.3]} 8. Nxd4 {[%clk
0:02:52]} 8... d6 {[%clk 0:02:48.6]} 9. O-O {[%clk 0:02:50.9]} 9... Bd7 {[%clk
0:02:48.5]} 10. Be3 {[%clk 0:02:49]} 10... a6 {[%clk 0:02:48.2]} 11. b3 {[%clk
0:02:48.4]} 11... Rc8 {[%clk 0:02:46.6]} 12. h3 {[%clk 0:02:46.1]} 12... b5
{[%clk 0:02:38]} 13. cxb5 {[%clk 0:02:42.7]} 13... Nxd4 {[%clk 0:02:37.4]} 14.
Bxd4 {[%clk 0:02:43.6]} 14... axb5 {[%clk 0:02:31.9]} 15. Qd2 {[%clk 0:02:38.6]}
15... b4 {[%clk 0:02:24.7]} 16. Ne2 {[%clk 0:02:31.5]} 16... Bb5 {[%clk
0:02:23.5]} 17. Rfc1 {[%clk 0:02:28.8]} 17... e5 {[%clk 0:02:19.2]} 18. Be3
{[%clk 0:02:28.3]} 18... Qa5 {[%clk 0:01:49.4]} 19. a4 {[%clk 0:02:07.2]} 19...
Bxe2 {[%clk 0:01:38.4]} 20. Qxe2 {[%clk 0:02:06.6]} 20... d5 {[%clk 0:01:39.3]}
21. exd5 {[%clk 0:01:59.9]} 21... Nxd5 {[%clk 0:01:38.6]} 22. Bxd5 {[%clk
0:01:58.6]} 22... Qxd5 {[%clk 0:01:37.4]} 23. Rc4 {[%clk 0:01:52.6]} 23... f5
{[%clk 0:01:31.9]} 24. Rac1 {[%clk 0:01:50.4]} 24... Ra8 {[%clk 0:01:24.6]} 25.
Bc5 {[%clk 0:01:46.5]} 25... Bxc5 {[%clk 0:01:19.5]} 26. Rxc5 {[%clk 0:01:46.7]}
26... Qxb3 {[%clk 0:01:19.3]} 27. Qxe5 {[%clk 0:01:38.2]} 27... f4 {[%clk
0:00:56.4]} 28. Rc7 {[%clk 0:01:33.5]} 28... Rf7 {[%clk 0:00:55.4]} 29. Rxf7
{[%clk 0:01:26.7]} 29... Qxf7 {[%clk 0:00:53.8]} 30. Rc7 {[%clk 0:01:27.2]}
30... Re8 {[%clk 0:00:42.1]} 31. Rxf7 {[%clk 0:01:06.7]} 31... Rxe5 {[%clk
0:00:40.7]} 32. Rxf4 {[%clk 0:01:07.6]} 32... b3 {[%clk 0:00:38.7]} 33. Rb4
{[%clk 0:01:06.4]} 33... Ra5 {[%clk 0:00:38.4]} 34. Rxb3 {[%clk 0:01:06.5]}
34... Rxa4 {[%clk 0:00:38.5]} 35. h4 {[%clk 0:01:05.1]} 35... Ra2 {[%clk
0:00:36.1]} 36. Kg2 {[%clk 0:00:54.9]} 36... h6 {[%clk 0:00:35.8]} 37. h5 {[%clk
0:00:53.9]} 37... Kf7 {[%clk 0:00:35]} 38. Rb6 {[%clk 0:00:51.1]} 38... Ra5
{[%clk 0:00:33.6]} 39. g4 {[%clk 0:00:50.9]} 39... Ra3 {[%clk 0:00:32.8]} 40. f3
{[%clk 0:00:50.8]} 40... Ra4 {[%clk 0:00:32.6]} 41. Kg3 {[%clk 0:00:51.3]} 41...
Rc4 {[%clk 0:00:32.5]} 42. Rb5 {[%clk 0:00:45.8]} 42... Ra4 {[%clk 0:00:31.5]}
43. Rf5+ {[%clk 0:00:45.5]} 43... Ke6 {[%clk 0:00:29.5]} 44. Rf4 {[%clk
0:00:45.3]} 44... Ra3 {[%clk 0:00:28.3]} 45. Rb4 {[%clk 0:00:43.4]} 45... Rc3
{[%clk 0:00:27]} 46. Kf4 {[%clk 0:00:43.2]} 46... Kf6 {[%clk 0:00:24.9]} 47.
Rb6+ {[%clk 0:00:42.2]} 47... Kf7 {[%clk 0:00:24.9]} 48. Rd6 {[%clk 0:00:38.4]}
48... Rc4+ {[%clk 0:00:22.9]} 49. Ke5 {[%clk 0:00:38.3]} 49... Rc5+ {[%clk
0:00:22.4]} 50. Rd5 {[%clk 0:00:38.5]} 50... Rc4 {[%clk 0:00:20.6]} 51. Rd7+
{[%clk 0:00:37.1]} 51... Kf8 {[%clk 0:00:19.9]} 52. Kf5 {[%clk 0:00:33.3]} 52...
Rc6 {[%clk 0:00:17.9]} 53. f4 {[%clk 0:00:30.6]} 53... Rf6+ {[%clk 0:00:17.8]}
54. Ke5 {[%clk 0:00:29.7]} 54... Ra6 {[%clk 0:00:18.1]} 55. Rd6 {[%clk
0:00:27.3]} 55... Ra4 {[%clk 0:00:14.6]} 56. Kf5 {[%clk 0:00:19.4]} 56... Kf7
{[%clk 0:00:13.7]} 57. Rd5 {[%clk 0:00:18.7]} 57... Rb4 {[%clk 0:00:11.6]} 58.
Rd7+ {[%clk 0:00:18.5]} 58... Kf8 {[%clk 0:00:10.5]} 59. Rd5 {[%clk 0:00:16.9]}
59... Kf7 {[%clk 0:00:09.8]} 60. Rc5 {[%clk 0:00:17]} 60... Ra4 {[%clk
0:00:08.9]} 61. Rc7+ {[%clk 0:00:15.5]} 61... Kf8 {[%clk 0:00:07.9]} 62. Rc3
{[%clk 0:00:13.8]} 62... Ra5+ {[%clk 0:00:06.5]} 63. Ke4 {[%clk 0:00:12.8]}
63... Ra4+ {[%clk 0:00:06.2]} 64. Ke5 {[%clk 0:00:13.2]} 64... Ra5+ {[%clk
0:00:06.3]} 65. Kd4 {[%clk 0:00:13.5]} 65... Kf7 {[%clk 0:00:05]} 66. Rc7+
{[%clk 0:00:12.5]} 66... Kf6 {[%clk 0:00:04.6]} 67. Rc6+ {[%clk 0:00:12.9]}
67... Kf7 {[%clk 0:00:04.1]} 68. Rd6 {[%clk 0:00:13.2]} 68... Rb5 {[%clk
0:00:02.3]} 69. Rd5 {[%clk 0:00:13.4]} 69... Rb4+ {[%clk 0:00:02.1]} 70. Ke5
{[%clk 0:00:14.3]} 70... Ra4 {[%clk 0:00:02.3]} 71. Kf5 {[%clk 0:00:12.5]} 71...
Ra7 {[%clk 0:00:01.1]} 72. g5 {[%clk 0:00:10.8]} 1-0